[Event "ETCC Open 2023"]
[Site "Budva"]
[Date "2023.11.12"]
[Round "2.32"]
[White "Ioannidis, Evgenios"]
[Black "Van Foreest, Lucas"]
[Result "1/2-1/2"]
[ECO "A28"]
[WhiteElo "2502"]
[BlackElo "2540"]
[Annotator "ChessBase"]
[PlyCount "83"]
[EventDate "2023.11.10"]
[EventType "team-tourn"]
[EventCountry "MNE"]
[SourceTitle "playchess.com"]
[Source "ChessBase"]
[SourceQuality "1"]
[WhiteTeam "Greece"]
[BlackTeam "Netherlands"]
[WhiteTeamCountry "GRE"]
[BlackTeamCountry "NED"]
[TimeControl "40/5400+30:1800+30"]

1. c4 {[%emt 0:00:07]} e5 {[%emt 0:01:08]} 2. Nc3 {[%emt 0:00:36]} Nf6 {[%emt 0:00:56]} 3. Nf3 {[%emt 0:00:47]} Nc6 {[%emt 0:00:22]} 4. e4 {[%emt 0:00:52]} Bb4 {[%emt 0:00:18]} 5. d3 {[%emt 0:00:12]} d6 {[%emt 0:01:15]} 6. a3 {[%emt 0:00:27]} Bxc3+ {[%emt 0:03:44]} 7. bxc3 {[%emt 0:00:12]} Ne7 {[%emt 0:00:32]} 8. g3 {[%emt 0:03:09]} Ng6 {[%emt 0:02:27]} 9. Bg2 {[%emt 0:01:31]} c6 {[%emt 0:00:38]} 10. O-O {[%emt 0:06:20]} O-O {[%emt 0:01:09]} 11. a4 {[%emt 0:03:10]} h6 {[%emt 0:07:02]} 12. Ne1 {[%emt 0:09:53]} Re8 {[%emt 0:14:14]} 13. Nc2 {[%emt 0:04:15]} d5 {[%emt 0:12:25]} 14. cxd5 {[%emt 0:05:15]} cxd5 {[%emt 0:00:05]} 15. exd5 {[%emt 0:00:12]} Nxd5 {[%emt 0:00:07]} 16. Ne3 {[%emt 0:03:27]} Be6 {[%emt 0:12:35]} 17. c4 {[%emt 0:01:37]} Nxe3 {[%emt 0:00:04]} 18. Bxe3 {[%emt 0:00:20]} Qd7 {[%emt 0:03:31]} 19. Rb1 {[%emt 0:14:00]} Reb8 {[%emt 0:00:25]} 20. Qb3 {[%emt 0:15:46]} Bh3 {[%emt 0:01:47]} 21. Qb5 {[%emt 0:00:21]} Qg4 {[%emt 0:01:35]} 22. Qd5 {[%emt 0:09:19]} Bxg2 {[%emt 0:00:09]} 23. Qxg2 {[%emt 0:01:59]} Qd7 {[%emt 0:01:35]} 24. a5 {[%emt 0:00:40]} Qxd3 {[%emt 0:01:13]} 25. Rxb7 {[%emt 0:01:47]} e4 {[%emt 0:00:08]} 26. Rxb8+ {[%emt 0:01:15]} Rxb8 {[%emt 0:00:01]} 27. Bxa7 {[%emt 0:00:10]} Rb4 {[%emt 0:12:09]} 28. Ra1 {[%emt 0:02:30]} Ne5 {[%emt 0:01:13]} 29. Qf1 {[%emt 0:00:48]} Qd7 {[%emt 0:04:31]} 30. Bc5 {[%emt 0:02:40]} Rxc4 {[%emt 0:03:51]} 31. Qxc4 {[%emt 0:01:39]} Nxc4 {[%emt 0:00:01]} 32. a6 {[%emt 0:00:06]} Qc6 {[%emt 0:02:33]} 33. a7 {[%emt 0:00:05]} Qa8 {[%emt 0:00:01]} 34. Rb1 {[%emt 0:06:13]} Kh7 {[%emt 0:00:07]} 35. h4 {[%emt 0:01:03]} Qd5 {[%emt 0:02:20]} 36. Rb8 {[%emt 0:00:33]} Qd1+ {[%emt 0:07:22]} 37. Kh2 {[%emt 0:00:08]} Ne5 {[%emt 0:00:26]} 38. a8=Q {[%emt 0:00:58]} Ng4+ {[%emt 0:01:19]} 39. Kg2 {[%emt 0:00:24]} Qf3+ {[%emt 0:00:05]} 40. Kg1 {[%emt 0:00:18]} Qd1+ {[%emt 0:00:03]} 41. Kg2 {[%emt 0:30:03]} Qf3+ {[%emt 0:30:02]} 42. Kg1 {[%emt 0:00:38]} 1/2-1/2

[Event "ETCC Open 2023"]
[Site "Budva"]
[Date "2023.11.12"]
[Round "2.33"]
[White "Vocaturo, Daniele"]
[Black "Predke, Alexandr"]
[Result "1/2-1/2"]
[ECO "B30"]
[WhiteElo "2632"]
[BlackElo "2661"]
[Annotator "TA"]
[PlyCount "256"]
[EventDate "2023.11.10"]
[EventType "team-tourn"]
[EventCountry "MNE"]
[SourceTitle "playchess.com"]
[Source "ChessBase"]
[SourceQuality "1"]
[WhiteTeam "Italy"]
[BlackTeam "Serbia"]
[WhiteTeamCountry "ITA"]
[BlackTeamCountry "SRB"]
[TimeControl "40/5400+30:1800+30"]

{[%evp 69,256,252,247,236,213,90,123,81,84,81,74,67,88,87,85,95,139,139,162,162,162,162,164,139,139,0,139,139,137,122,164,139,352,329,400,508,481,563,512,540,422,414,414,336,202,0,414,414,414,0,414,353,329,329,329,329,329,328,243,243,713,640,670,228,228,235,228,228,228,228,12831,12831,12832,12832,12830,12831,12832,12831,12826,12827,12827,12827,1722,19,1094,1105,875,166,730,650,338,322,311,157,150,147,147,147,147,147,147,147,147,147,147,147,147,147,147,147,147,147,147,147,147,147,147,67,147,147,147,147,147,147,147,147,147,0,0,0,0,0,0,0,0,0,12843,12843,12844,12844,12845,12845,12843,12843,12846,12847,12847,12845,12845,12844,12845,12845,12845,12846,12846,12844,12845,12844,12846,12840,12841,0,0,0,0,0,0,0,0,0,0,0,0,0,0,0,0,0,0,0,0,0,0,0,0,0,0,0,0]} 1. e4 {[%emt 0:00:14]} c5 {[%emt 0:01:32]} 2. Nf3 {[%emt 0:00:39]} Nc6 {[%emt 0:00:05]} 3. Bb5 {[%emt 0:01:31]} e6 {[%emt 0:00:09]} 4. Bxc6 {[%emt 0:02:03]} bxc6 {[%emt 0:00:05]} 5. d3 {[%emt 0:00:19]} Qc7 {[%emt 0:00:20]} 6. e5 {[%emt 0:04:35]} f6 {[%emt 0:00:25]} 7. Bf4 {[%emt 0:03:31]} Ne7 {[%emt 0:01:16]} 8. O-O {[%emt 0:06:28]} fxe5 {[%emt 0:04:13]} 9. Bxe5 {[%emt 0:01:00]} d6 {[%emt 0:00:08]} 10. Bg3 {[%emt 0:00:16]} g6 {[%emt 0:08:39]} 11. d4 {[%emt 0:08:55]} cxd4 {[%emt 0:00:41]} 12. Qxd4 {[%emt 0:00:14]} e5 {[%emt 0:00:14]} 13. Qc4 {[%emt 0:00:08]} Nd5 {[%emt 0:19:05]} 14. Nc3 {[%emt 0:06:30]} Nb6 {[%emt 0:00:17]} 15. Qb3 {[%emt 0:04:32]} Ba6 {[%emt 0:08:06]} 16. Rfe1 {[%emt 0:08:19]} Bc4 {[%emt 0:05:41]} 17. Qa3 {[%emt 0:00:18]} Be7 {[%emt 0:09:45]} 18. b3 {[%emt 0:16:23]} Bd5 {[%emt 0:05:03]} 19. Nxd5 {[%emt 0:03:33]} cxd5 {[%emt 0:00:04]} 20. c4 {[%emt 0:00:23]} O-O {[%emt 0:02:46]} 21. cxd5 {[%emt 0:01:25]} Nxd5 {[%emt 0:01:02]} 22. Rac1 {[%emt 0:00:51]} Qb7 {[%emt 0:00:50]} 23. Qa4 {[%emt 0:02:28]} Nf4 {[%emt 0:05:42]} 24. Qc4+ {[%emt 0:08:24]} d5 {[%emt 0:06:27]} 25. Qc7 {[%emt 0:00:06]} Qxc7 {[%emt 0:04:17]} 26. Rxc7 {[%emt 0:00:04]} Bb4 {[%emt 0:00:59]} 27. Bxf4 {[%emt 0:05:11]} Rxf4 {[%emt 0:00:02]} 28. Rd1 {[%emt 0:00:28]} e4 {[%emt 0:10:32]} 29. Nd4 {[%emt 0:02:22]} Ba5 {[%emt 0:02:46]} 30. Rg7+ {[%emt 0:06:58]} Kh8 {[%emt 0:00:03]} 31. Rd7 {[%emt 0:00:04]} Bb6 {[%emt 0:01:00]} 32. Rxd5 {[%emt 0:05:55]} Raf8 {[%emt 0:00:05]} 33. Ne6 {[%emt 0:00:39]} Rxf2 {[%emt 0:00:34]} 34. Nxf8 {[%emt 0:00:05]} Rxf8+ {[%emt 0:00:48]} 35. Kh1 {[%emt 0:00:03]} e3 {[%emt 0:00:53]} 36. Re5 {[%emt 0:00:38]} Rf2 {[%emt 0:00:40]} 37. Re1 {[%emt 0:02:03]} (37. g4 $18 {and White stays clearly on top.}) 37... Kg7 {[%emt 0:02:30]} 38. h4 {[%emt 0:01:02]} Rxa2 {[%emt 0:00:52]} 39. Re4 {[%emt 0:00:37]} Rb2 {[%emt 0:00:51]} 40. b4 {[%emt 0:00:12]} Rd2 {[%emt 0:00:28]} 41. Kh2 {[%emt 0:02:52]} h5 {[%emt 0:08:13]} 42. Kh3 {[%emt 0:01:59]} Rd3 {[%emt 0:04:20]} 43. g3 {[%emt 0:01:33]} Rd2 {[%emt 0:03:09]} 44. Rf1 {[%emt 0:02:36]} Rf2 {[%emt 0:00:50]} 45. Rc1 {[%emt 0:01:49]} Kf7 {[%emt 0:02:52]} 46. Rd1 {[%emt 0:04:43]} Rd2 {[%emt 0:00:41]} 47. Re1 {[%emt 0:02:13]} (47. Rf1+ $16 Rf2 48. Rxf2+ exf2 49. Kg2) 47... Rc2 {[%emt 0:01:01]} (47... Kg7 $1 $11) 48. Rf1+ $16 {[%emt 0:01:25]} Rf2 {[%emt 0:00:04]} 49. Rc1 $1 {[%emt 0:00:12]} Rf6 {[%emt 0:01:16]} 50. Rc8 {[%emt 0:01:12]} Re6 $2 {[%emt 0:00:35]} (50... Rd6 $16 {was called for.} 51. Rce8 Rd2 52. R4e7+ Kf6 53. Re6+ Kf5) 51. Rf8+ $18 {[%emt 0:03:40]} Kxf8 {[%emt 0:00:12]} 52. Rxe6 {[%emt 0:00:04]} Kf7 {[%emt 0:00:02]} 53. Re4 {[%emt 0:00:04]} Kf6 {[%emt 0:00:15]} 54. Kg2 {[%emt 0:00:06]} Kf5 {[%emt 0:02:31]} 55. Kf3 {[%emt 0:00:12]} Kf6 {[%emt 0:01:16]} 56. Kf4 {[%emt 0:00:20]} Bc7+ {[%emt 0:00:50]} 57. Kf3 $2 {[%emt 0:01:22]} (57. Kxe3 Bxg3 58. Kf3) 57... Bb6 $1 $18 {[%emt 0:00:04]} 58. Ke2 {[%emt 0:00:54]} Kf5 {[%emt 0:01:02]} 59. Kf3 {[%emt 0:03:53]} Kf6 $1 {[%emt 0:00:06]} 60. Re8 {[%emt 0:00:07]} Kf7 {[%emt 0:00:13]} 61. Re5 {[%emt 0:00:19]} Kf6 {[%emt 0:00:17]} 62. Re4 {[%emt 0:00:06]} Kf5 {[%emt 0:00:46]} 63. Re8 {[%emt 0:00:10]} Kf6 {[%emt 0:00:06]} 64. Rf8+ {[%emt 0:01:22]} Ke7 $2 {[%emt 0:00:29]} (64... Kg7 65. Rf4 Kg8) 65. Rf4 {[%emt 0:00:29]} Ke6 {[%emt 0:00:09]} 66. Ke2 {[%emt 0:00:20]} Ke5 {[%emt 0:00:16]} 67. Kd3 {[%emt 0:00:11]} Ke6 {[%emt 0:00:06]} 68. Rf3 {[%emt 0:00:09]} Ke5 {[%emt 0:00:18]} 69. Rf1 {[%emt 0:00:04]} Bd4 $2 {[%emt 0:01:30]} (69... Ke6 70. Rf4 Ke5) 70. Rc1 $18 {[%emt 0:02:17]} Bb6 {[%emt 0:00:19]} 71. Rc6 {[%emt 0:00:47]} Kf5 {[%emt 0:00:33]} 72. Ke2 {[%emt 0:01:00]} Bd4 {[%emt 0:05:58]} 73. Kf3 {[%emt 0:00:43]} Bb6 {[%emt 0:00:03]} 74. Rd6 {[%emt 0:01:00]} Bc7 {[%emt 0:00:04]} 75. Rd5+ {[%emt 0:00:15]} Kf6 {[%emt 0:00:14]} 76. Ke2 $2 {[%emt 0:06:35]} ({Less strong is} 76. Kxe3 Bxg3 77. Rd7 Be1 $18) (76. g4 $18 hxg4+ 77. Kxe3) 76... Bb6 $2 {[%emt 0:02:22][%mdl 8192]} (76... Bxg3 $11 77. Ra5 (77. Kxe3 Bxh4 78. Ra5 Be1 $11) 77... Ke6) 77. Rd6+ $18 {[%emt 0:00:16]} Kg7 {[%emt 0:00:50]} 78. Kf3 $2 {[%emt 0:00:16]} (78. Rc6 {aiming for Kd3.} Bd4 79. Re6) 78... Kf7 $18 {[%emt 0:00:04]} 79. Rc6 {[%emt 0:00:08]} Bd4 {[%emt 0:00:12]} 80. Rc2 {[%emt 0:00:23]} Bb6 {[%emt 0:00:56]} 81. Ke4 {[%emt 0:00:05]} (81. Ke2 $18) 81... Ke6 {[%emt 0:00:15]} 82. b5 {[%emt 0:01:36]} Kf6 {[%emt 0:00:35]} 83. Rc6+ {[%emt 0:00:19]} Kf7 {[%emt 0:01:01]} 84. Kd5 {[%emt 0:01:20]} Ba5 {[%emt 0:01:23]} 85. Re6 {[%emt 0:00:28]} Bb6 {[%emt 0:00:03]} 86. Re5 {[%emt 0:00:42]} Kf6 {[%emt 0:00:16]} 87. Re4 {[%emt 0:00:04]} Kf7 {[%emt 0:02:17]} 88. Kd6 {[%emt 0:00:33]} Kf6 {[%emt 0:00:54]} 89. Rf4+ {[%emt 0:00:16]} Kg7 {[%emt 0:00:04]} 90. Ke6 {[%emt 0:00:40]} Ba5 {[%emt 0:01:43]} (90... e2 $2 91. Re4 $18) 91. Re4 {[%emt 0:00:19]} Bb6 {[%emt 0:00:03]} 92. Ke5 {[%emt 0:01:14]} Bc7+ {[%emt 0:00:38]} 93. Kd5 {[%emt 0:00:41]} (93. Kd4 $16 {Black must now prevent Re7+.} Bxg3 94. Kxe3) 93... Bb6 {[%emt 0:00:17]} (93... Bxg3 $14 94. Kd4 Bh2 95. Kxe3 Bg1+ 96. Kf4 Kf6) 94. Ke6 $16 {[%emt 0:00:19]} Bc5 {[%emt 0:00:31]} 95. g4 {[%emt 0:00:39]} hxg4 {[%emt 0:00:44]} 96. Rxg4 {[%emt 0:00:03]} ({Wrong is} 96. Kd5 $2 g3 97. Kxc5 g2 $19) 96... Kh6 {[%emt 0:01:42]} (96... e2 $2 97. Re4 $18) 97. Kf7 {[%emt 0:01:03]} Bb6 {[%emt 0:00:03]} (97... e2 $2 98. Rxg6+ Kh5 99. Re6 $18) 98. Rxg6+ {[%emt 0:00:40]} ({Better is} 98. Ke7 $16) 98... Kh5 $11 {[%emt 0:00:03]} 99. Rg8 {[%emt 0:00:25]} Kxh4 {[%emt 0:01:24]} (99... e2 $2 100. Re8 $18) 100. Kf6 {[%emt 0:00:09]} Ba5 {[%emt 0:00:14]} (100... Bd4+ 101. Kf5 Bb6 102. Rg7 $18) 101. Rg2 {[%emt 0:00:45]} Kh3 {[%emt 0:00:44]} 102. Re2 {[%emt 0:00:05]} Bb6 $2 {[%emt 0:00:36][%mdl 8192] [#]} (102... Bd2 $11 103. Kf5 Kh4) 103. Kf5 $1 $18 {[%emt 0:00:04]} Kg3 {[%emt 0:00:09]} 104. Ke4 {[%emt 0:00:04]} Bc5 {[%emt 0:00:25]} 105. Ra2 {[%emt 0:00:11]} Bb6 {[%emt 0:00:03]} 106. Rc2 {[%emt 0:00:04]} Kg4 {[%emt 0:00:47]} 107. Rg2+ {[%emt 0:00:04]} Kh5 {[%emt 0:00:03]} 108. Kf5 {[%emt 0:00:24]} Kh6 {[%emt 0:00:26]} 109. Rg6+ {[%emt 0:00:36]} Kh7 {[%emt 0:00:40]} 110. Rg4 {[%emt 0:00:37]} Kh6 {[%emt 0:00:13]} 111. Rg2 {[%emt 0:00:24]} Bd4 {[%emt 0:00:49]} 112. Rg8 {[%emt 0:00:39]} Bb6 {[%emt 0:00:16]} 113. Rg4 {[%emt 0:00:30]} Kh5 {[%emt 0:00:28]} 114. Re4 {[%emt 0:00:08]} Kh6 {[%emt 0:00:09] [#]} 115. Re8 $2 {[%emt 0:00:14]} (115. Kf6 $1 $18 {[%cal Re4h4]} Kh5 116. Ra4 Bd8+ 117. Kf5) 115... Kg7 $11 {[%emt 0:00:35]} 116. Re4 {[%emt 0:00:52]} Kf7 {[%emt 0:00:11]} 117. Re6 {[%emt 0:00:18]} Bc5 {[%emt 0:00:44]} 118. Re4 {[%emt 0:00:39]} Bb6 {[%emt 0:00:08]} 119. Re5 {[%emt 0:00:04]} Kg7 {[%emt 0:00:30]} 120. Re7+ {[%emt 0:00:17]} Kh6 {[%emt 0:00:29]} 121. Re6+ {[%emt 0:01:38]} Kg7 $1 {[%emt 0:00:18]} 122. Re7+ {[%emt 0:00:11]} Kh6 {[%emt 0:00:06]} 123. Kf4 {[%emt 0:00:25]} Kg6 {[%emt 0:00:09]} 124. Re6+ {[%emt 0:00:03]} Kf7 {[%emt 0:00:05]} 125. Kf5 {[%emt 0:00:03]} Kg7 {[%emt 0:00:06]} 126. Re7+ {[%emt 0:00:03]} Kh6 {[%emt 0:00:05]} 127. Re6+ {[%emt 0:00:04]} Kg7 $1 {[%emt 0:00:04]} 128. Re7+ {[%emt 0:00:03]} Kh6 {[%emt 0:00:03]} 1/2-1/2

[Event "ETCC Open 2023"]
[Site "Budva"]
[Date "2023.11.12"]
[Round "2.34"]
[White "Indjic, Aleksandar"]
[Black "Moroni, Luca Jr"]
[Result "1/2-1/2"]
[ECO "A13"]
[WhiteElo "2601"]
[BlackElo "2575"]
[Annotator "TA"]
[PlyCount "207"]
[EventDate "2023.11.10"]
[EventType "team-tourn"]
[EventCountry "MNE"]
[SourceTitle "playchess.com"]
[Source "ChessBase"]
[SourceQuality "1"]
[WhiteTeam "Serbia"]
[BlackTeam "Italy"]
[WhiteTeamCountry "SRB"]
[BlackTeamCountry "ITA"]
[TimeControl "40/5400+30:1800+30"]

{[%evp 42,207,8,0,0,0,0,0,6,3,6,0,0,0,6,10,8,8,4,0,0,0,0,0,0,0,60,40,61,-87,-60,-962,166,64,73,70,78,35,39,33,33,43,54,54,65,52,55,32,31,38,122,120,111,95,89,36,34,8,55,18,65,65,65,65,65,65,62,56,56,54,52,47,47,47,62,25,33,7,24,7,7,0,0,0,0,0,0,0,7,7,7,0,0,0,7,7,7,7,8,7,7,7,8,8,8,8,8,8,8,8,8,8,8,7,8,8,7,7,7,7,7,7,7,7,8,8,8,8,8,8,8,8,8,8,8,8,8,8,8,8,8,7,8,8,8,8,8,8,8,8,8,8,8,8,8,8,8,8,8,8,8,8,8,9,16,16,48,48]} 1. c4 {[%emt 0:01:00]} e6 {[%emt 0:00:05]} 2. g3 {[%emt 0:00:27]} d5 {[%emt 0:00:30]} 3. Bg2 {[%emt 0:00:18]} Nf6 {[%emt 0:00:24]} 4. Nf3 {[%emt 0:00:28]} dxc4 {[%emt 0:00:59]} 5. Qa4+ {[%emt 0:00:24]} Bd7 {[%emt 0:00:05]} 6. Qxc4 {[%emt 0:00:17]} c5 {[%emt 0:00:11]} 7. Ne5 {[%emt 0:00:36]} Qc8 {[%emt 0:00:22]} 8. Qd3 {[%emt 0:00:34]} Nc6 {[%emt 0:01:46]} 9. Nxd7 {[%emt 0:00:15]} Nxd7 {[%emt 0:00:25]} 10. b3 {[%emt 0:00:19]} Be7 {[%emt 0:01:05]} 11. Bb2 {[%emt 0:00:50]} O-O {[%emt 0:00:52]} 12. Nc3 {[%emt 0:00:12]} Rd8 {[%emt 0:01:21]} 13. Rd1 {[%emt 0:00:17]} Qc7 {[%emt 0:02:18]} 14. O-O {[%emt 0:01:10]} Rac8 {[%emt 0:08:02]} 15. Qb1 {[%emt 0:00:38]} Bf6 {[%emt 0:03:44]} 16. f4 {[%emt 0:07:46]} Nb6 {[%emt 0:12:13]} 17. f5 {[%emt 0:03:15]} Qe7 {[%emt 0:11:34]} 18. fxe6 {[%emt 0:26:38]} fxe6 {[%emt 0:14:14]} 19. Be4 {[%emt 0:05:56]} h6 {[%emt 0:00:47]} 20. Rf2 {[%emt 0:04:01]} Rf8 {[%emt 0:04:51]} 21. Bxc6 {[%emt 0:01:10]} Rxc6 {[%emt 0:02:06]} 22. Ne4 {[%emt 0:00:06]} Bxb2 {[%emt 0:01:37]} 23. Rxf8+ {[%emt 0:00:06]} Qxf8 {[%emt 0:00:05]} 24. Qxb2 {[%emt 0:00:10]} Qd8 {[%emt 0:02:46]} 25. Rc1 {[%emt 0:00:08]} c4 {[%emt 0:02:09]} 26. Rf1 {[%emt 0:03:37]} cxb3 {[%emt 0:08:59]} 27. axb3 {[%emt 0:00:17]} Nd5 {[%emt 0:01:42]} 28. Qe5 {[%emt 0:00:23]} Ne7 {[%emt 0:06:08]} 29. Qf4 {[%emt 0:01:29]} Nf5 {[%emt 0:01:51]} 30. b4 {[%emt 0:03:54]} Qc7 {[%emt 0:04:13]} 31. Qf2 {[%emt 0:05:39]} Qb6 {[%emt 0:01:10]} 32. b5 {[%emt 0:05:07]} Qxf2+ {[%emt 0:01:41]} 33. Kxf2 {[%emt 0:00:07]} Rb6 {[%emt 0:00:34]} (33... Rc4 $11 34. Nc3 b6) 34. Ra1 $1 $14 {[%emt 0:00:07]} Rxb5 {[%emt 0:04:08]} 35. Ra4 {[%emt 0:30:19]} (35. Rxa7 $14 Rb2 36. g4) 35... a6 36. Rxa6 $2 {[%emt 0:00:00][%mdl 8192]} (36. Rc4 $15) 36... Rb3 $4 {[%emt 0:03:33][%mdl 8192]} (36... bxa6 $19 37. Nc3 Rb4) 37. Ra7 (37. Rxe6 $18 Kf8 38. Re5) 37... Rb2 {[%emt 0:00:00]} 38. g4 {[%emt 0:00:00]} Nd4 {[%emt 0:00:00]} 39. e3 {[%emt 0:00:00]} Nc6 {[%emt 0:00:00]} 40. Ra8+ {[%emt 0:00:00]} Kf7 {[%emt 0:00:21]} 41. Rc8 {[%emt 0:02:40]} Rb4 {[%emt 0:31:10]} 42. Rc7+ $1 {[%emt 0:00:21]} Kg8 {[%emt 0:00:49]} 43. Nc5 {[%emt 0:01:08]} Rxg4 {[%emt 0:00:00]} 44. Nxe6 {[%emt 0:00:00]} Rg6 {[%emt 0:00:00]} 45. Nc5 {[%emt 0:00:00]} b6 {[%emt 0:00:00] [#]} (45... Ne5 $1 $14) 46. Nd7 $1 $16 {[%emt 0:00:00]} Rd6 {[%emt 0:00:00]} 47. Ke2 {[%emt 0:00:00]} (47. Nxb6 $6 Ne5 $11) 47... b5 {[%emt 0:00:00]} 48. h4 {[%emt 0:00:00]} (48. Nc5 $16) 48... g5 $14 {[%emt 0:00:00]} 49. h5 {[%emt 0:00:00]} b4 {[%emt 0:00:00]} (49... Nb4 $1 $11 {was preferrable.}) 50. d4 {[%emt 0:00:00]} Nxd4+ {[%emt 0:00:00]} (50... b3 $11 {might be stronger.} 51. Nc5 Nxd4+ 52. exd4 Rb6 53. Nxb3 Rxb3) 51. exd4 $14 {[%emt 0:00:00]} Rxd4 {[%emt 0:00:00]} 52. Ke3 {[%emt 0:00:00]} Rh4 {[%emt 0:00:00]} 53. Nf6+ {[%emt 0:00:52]} Kf8 {[%emt 0:00:00]} 54. Rb7 {[%emt 0:00:20]} b3 {[%emt 0:00:00]} 55. Kd3 {[%emt 0:06:46]} (55. Rxb3 $2 Rh3+ 56. Kf2 Rxb3 $19) 55... Rf4 {[%emt 0:00:00]} 56. Nd7+ {[%emt 0:06:45]} Ke7 {[%emt 0:00:00]} 57. Nc5+ {[%emt 0:00:22]} Kf6 {[%emt 0:01:30]} 58. Rb6+ {[%emt 0:10:22]} (58. Rxb3 $5 {[%cal Rb3b6]} Rh4 59. Ne4+ (59. Rb6+ Kf7 $16) 59... Ke5 60. Ng3 $14) 58... Kf5 {[%emt 0:00:39]} 59. Ne6 {[%emt 0:00:16]} (59. Nxb3 {simplifies} Kg4 60. Rxh6 Rf3+ 61. Kc4) 59... Rh4 {[%emt 0:03:02]} 60. Ng7+ {[%emt 0:01:00]} Ke5 {[%emt 0:01:39]} 61. Kc3 {[%emt 0:02:25]} (61. Rxb3 $2 {perishes.} Rh3+ 62. Kc4 Rxb3 63. Kxb3 g4 $19) 61... Rh3+ {[%emt 0:01:40]} 62. Kb2 {[%emt 0:00:14]} g4 {[%emt 0:00:49]} 63. Rxh6 {[%emt 0:00:16]} g3 {[%emt 0:00:27]} 64. Rg6 {[%emt 0:00:06]} (64. Kxb3 {gets mated.} g2+ 65. Kc4 Rh4+ 66. Kb5 g1=Q 67. Re6+ Kd5) 64... Kf4 {[%emt 0:00:35]} 65. Ne6+ {[%emt 0:01:45]} Ke5 {[%emt 0:00:58]} 66. Ng7 {[%emt 0:02:23]} Kf4 {[%emt 0:00:02]} 67. Ne6+ {[%emt 0:02:40]} Ke5 {[%emt 0:00:03]} 68. Nc5 {[%emt 0:00:05]} Rxh5 {[%emt 0:00:20]} 69. Rxg3 {[%emt 0:00:05]} (69. Nd3+ {feels hotter.} Ke4 70. Rxg3 Rh2+ 71. Kc3) 69... Rh1 {[%emt 0:00:05]} 70. Kxb3 {[%emt 0:00:06]} Kd5 {[%emt 0:00:07]} 71. Rg5+ {[%emt 0:00:06]} Kc6 {[%emt 0:00:04]} 72. Nd3 {[%emt 0:00:13]} Kd6 {[%emt 0:00:10]} 73. Kc3 {[%emt 0:00:08]} Rh4 {[%emt 0:00:07]} 74. Nc5 $1 {[%emt 0:00:05]} Rh1 {[%emt 0:00:12]} 75. Nb3 {[%emt 0:00:34]} Rh4 {[%emt 0:00:36]} 76. Nd4 {[%emt 0:00:09]} Rh1 {[%emt 0:00:03]} 77. Rg8 {[%emt 0:01:01]} Rc1+ {[%emt 0:00:19]} 78. Kd2 {[%emt 0:00:05]} Rh1 {[%emt 0:00:07]} 79. Rd8+ {[%emt 0:00:04]} Ke5 {[%emt 0:00:15]} 80. Nc6+ {[%emt 0:00:11]} Ke6 {[%emt 0:00:12]} 81. Ke2 {[%emt 0:00:08]} Ra1 {[%emt 0:00:11]} 82. Rd3 {[%emt 0:00:22]} Rh1 {[%emt 0:00:14]} 83. Nd4+ {[%emt 0:00:05]} Kf6 {[%emt 0:00:25]} 84. Ke3 {[%emt 0:00:06]} Re1+ {[%emt 0:00:54]} 85. Kf4 {[%emt 0:00:06]} Rf1+ {[%emt 0:00:16]} 86. Nf3 {[%emt 0:00:06]} Ra1 {[%emt 0:00:37]} 87. Rd6+ {[%emt 0:00:06]} Ke7 {[%emt 0:00:04]} 88. Rb6 {[%emt 0:00:06]} Rf1 {[%emt 0:00:30]} 89. Ke4 {[%emt 0:00:08]} Kd7 {[%emt 0:00:24]} 90. Nd4 {[%emt 0:00:08]} Ke7 {[%emt 0:00:47]} 91. Ne6 {[%emt 0:00:38]} Re1+ {[%emt 0:00:55]} 92. Kd5 {[%emt 0:00:08]} Rd1+ {[%emt 0:00:17]} 93. Nd4 {[%emt 0:00:12]} Kf7 {[%emt 0:00:20]} 94. Ra6 {[%emt 0:00:30]} Ke7 {[%emt 0:00:15]} 95. Re6+ {[%emt 0:00:22]} Kf7 {[%emt 0:00:05]} 96. Re2 {[%emt 0:00:13]} Kf6 {[%emt 0:00:44]} 97. Re4 {[%emt 0:00:07]} Ra1 {[%emt 0:00:34]} 98. Rf4+ {[%emt 0:00:14]} Kg6 {[%emt 0:00:25]} 99. Rf2 {[%emt 0:00:17]} Re1 {[%emt 0:00:21]} 100. Nf3 {[%emt 0:00:07]} Ra1 {[%emt 0:00:19]} 101. Ne5+ {[%emt 0:00:13]} Kg5 {[%emt 0:00:06]} 102. Nf7+ {[%emt 0:00:17]} Kg4 {[%emt 0:00:13]} 103. Nd6 {[%emt 0:00:05]} Ra5+ {[%emt 0:00:28]} 104. Ke4 {[%emt 0:01:03]} 1/2-1/2